Cogmind - Beta 16 @@@ ROGUE MODE // 2025.11.24 @ 19:24:50 Player: unq Result: Self-destructed Performance ------------- Evolutions (4) 2000 Regions Visited (13) 2600 Robots Destroyed (186) 930 Value Destroyed (8605) 8605 Prototype IDs (44) 880 Alien Tech Used (0) 0 Bonus (3446) 3446 TOTAL SCORE: 18461 Bonus ------- High Alert Combat Kills 1430 Follower Combat Kills 1524 Entered Garrisons 600 Aligned with FarCom 300 Friendly Fire -408 Cogmind --------- Core Integrity 783/850 Matter 237/300 Energy 129/140 System Corruption 10% Temperature Cool (9) Movement Treading (160) Location -6/Factory Parts ------- > --- POWER (1) -------- Light Deuterium Engine > --- PROPULSION (6) --- Improved Medium Treads Improved Medium Treads Improved Heavy Treads Improved Heavy Treads > --- UTILITY (5) ------ Advanced Heat Sink High-capacity Storage Unit 0b10 Alert Chip > --- WEAPON (3) ------- Heavy Particle Cannon Makeshift Axe > --- INVENTORY (20) --- Light Nuclear Core Micro Nuclear Core Medium Treads Cesium-ion Thruster Cesium-ion Thruster Faulty Cooled VTOL Module Cooled VTOL Module Medium Storage Unit Small Matter Pod (50) Gravity Neutralizer Structural Scanner Improved Signal Interpreter Advanced Phase Shifter System Shield Minigun Enhanced Autogun Enhanced Autogun Improved Proton Missile Launcher Peak State ------------ > --- POWER ------------ Improved Deuterium Engine > --- PROPULSION ------- Improved Medium Treads Improved Medium Treads Improved Heavy Treads Improved Heavy Treads > --- UTILITY ---------- Advanced Heat Sink High-capacity Storage Unit 0b10 Alert Chip Core Analyzer Improved Medium Armor Plating > --- WEAPON ----------- Gauss Rifle Gauss Rifle Improved Proton Missile Launcher > --- INVENTORY -------- Light Deuterium Engine Light Nuclear Core Micro Nuclear Core Medium Treads Cooled VTOL Module Cooled VTOL Module Medium Storage Unit Small Matter Pod Gravity Neutralizer Structural Scanner Advanced Phase Shifter Improved Medium Armor Plating System Shield Heavy Particle Cannon Minigun Enhanced Autogun Enhanced Autogun Missile Launcher Makeshift Axe [Rating: 82] Favorites ----------- Power Improved Deuterium Engine Engine Improved Deuterium Engine Power Core Light Nuclear Core Propulsion Light Treads Treads Light Treads Leg Aluminum Leg Utility Large Storage Unit Device Improved Cooling System Storage Large Storage Unit Processor 0b10 Alert Chip Hackware Hacking Suite Protection Hardened Medium Armor Plating Weapon Enhanced Autogun Energy Gun Advanced Beam Rifle Energy Cannon Heavy Ion Cannon Ballistic Gun Enhanced Autogun Launcher Grenade Launcher Special Weapon Plasma Cutter Slashing Weapon Makeshift Axe Special Melee Weapon Datajack Build | -11 -10 -10 -10 -9 -8 -8 -7 -7 -7 -7 -7 -7 -6 ------- Run | Yrd Mat Min Exi Min Mat Gar Fac Was Fac Gar Fac Gar Fac Slots Evolved 8 | . . . . . 4 . 2 . . . . . 2 Power . | . . . . . . . . . . . . . . Propulsion 4 | . . . . . 2 . . . . . . . 2 Utility 3 | . . . . . 1 . 2 . . . . . . Weapon 1 | . . . . . 1 . . . . . . . . Parts Attached 105 | 8 9 1 2 3 31 7 4 5 1 10 10 8 6 Power 15 | 1 2 . . 1 2 1 1 . . 3 . 2 2 Engine 10 | 1 2 . . 1 . . 1 . . 3 . . 2 Core 5 | . . . . . 2 1 . . . . . 2 . Reactor . | . . . . . . . . . . . . . . Propulsion 25 | 2 2 . 1 . 7 2 1 2 . 1 2 3 2 Treads 23 | . 2 . 1 . 7 2 1 2 . 1 2 3 2 Leg 2 | 2 . . . . . . . . . . . . . Wheel . | . . . . . . . . . . . . . . Hover . | . . . . . . . . . . . . . . Flight . | . . . . . . . . . . . . . . Utility 33 | 2 4 . . 1 7 2 1 3 1 3 5 3 1 Device 12 | 1 . . . 1 4 . . 2 . 1 1 2 . Storage 4 | 1 2 . . . . . . . . . 1 . . Processor 5 | . 1 . . . . 1 1 . . . 1 1 . Hackware 2 | . . . . . . 1 . . 1 . . . . Protection 10 | . 1 . . . 3 . . 1 . 2 2 . 1 Artifact . | . . . . . . . . . . . . . . Weapon 32 | 3 1 1 1 1 15 2 1 . . 3 3 . 1 Energy Gun 8 | 1 . . . . 7 . . . . . . . . Energy Cannon 2 | . . . . . . . 1 . . 1 . . . Ballistic Gun 13 | 2 . . . . 7 1 . . . . 3 . . Ballistic Cannon . | . . . . . . . . . . . . . . Launcher 5 | . . 1 . 1 . . . . . 2 . . 1 Special Weapon 2 | . 1 . . . . 1 . . . . . . . Impact Weapon . | . . . . . . . . . . . . . . Slashing Weapon 1 | . . . . . 1 . . . . . . . . Piercing Weapon . | . . . . . . . . . . . . . . Special Melee Weapon 1 | . . . 1 . . . . . . . . . . Unidentified Prototypes 3 | . . . . . 3 . . . . . . . . Parts Lost 15 | . . 1 . . 3 . . . . . 1 4 6 Power 3 | . . . . . . . . . . . . 2 1 Propulsion 5 | . . . . . 3 . . . . . 1 1 . Utility 3 | . . . . . . . . . . . . 1 2 Weapon 4 | . . 1 . . . . . . . . . . 3 Highest Loss Streak 4 | . . 1 . . 2 . . . . . 1 2 4 To Critical Strikes . | . . . . . . . . . . . . . . Average Backups 15 | 3 11 14 15 14 14 14 14 14 13 13 16 18 18 Power . | . . 1 1 1 1 1 1 1 1 1 1 . 1 Propulsion 2 | 1 1 2 2 2 1 3 3 3 2 3 3 4 3 Utility 3 | . 4 5 5 3 2 2 1 2 2 1 4 6 7 Weapon 7 | 1 3 5 5 6 7 7 7 7 7 8 8 7 6 Tool/Special . | . . . . . . . . . . . . . . Unused Backups 31 | . 2 . . . 8 1 . . 3 2 . 3 12 Power 7 | . 1 . . . 1 . . . 1 2 . 1 1 Propulsion 6 | . . . . . 1 . . . 1 . . 1 3 Utility 10 | . 1 . . . 1 . . . 1 . . 1 6 Weapon 8 | . . . . . 5 1 . . . . . . 2 Tool/Special . | . . . . . . . . . . . . . . Average Slot Usage (%) 92 | . 100 99 100 100 97 100 99 88 84 84 87 86 83 Engine 6 | . 14 14 14 14 . . 2 7 7 7 7 1 2 Core 2 | . . . . . 8 9 4 . . . . 5 3 Treads 23 | . 17 28 28 28 34 36 30 19 15 15 18 17 23 Leg 1 | . 10 . . . . . . . . . . . . Device 7 | . 12 14 13 9 8 . 6 7 6 6 6 6 6 Storage 8 | . 14 14 14 14 9 9 7 7 7 7 7 7 6 Processor 9 | . . . . . . 8 15 15 15 15 15 15 13 Protection 6 | . 1 . . 4 9 9 7 7 7 7 7 7 6 Energy Gun 4 | . 1 11 14 14 12 1 . . 5 5 . . . Energy Cannon 2 | . . . . . . . 6 7 7 4 6 1 . Ballistic Gun 12 | . 24 5 . . 12 19 7 7 7 7 12 17 14 Slashing Weapon 2 | . . . . . 1 5 7 7 1 2 2 3 4 Peak Build Rating 82 | 7 9 8 10 10 32 33 44 62 63 64 65 69 82 Average Rating 42 | 5 8 7 8 9 24 32 42 56 62 63 60 63 79 On Entrance 33 | . 7 8 8 10 10 32 33 44 62 62 63 57 68 Avg Prop Armor Cover (%) 9 | . . . . . . . . . . . . . 9 Naked Turns . | . . . . . . . . . . . . . . Heaviest Build 75 | 11 33 31 34 34 43 43 53 54 54 54 73 71 75 Greatest Support 220 | 20 40 40 40 40 80 80 80 140 140 140 140 150 220 Greatest Overweight (x) . | . . . . . . . . . . . . . . Average Overweight (x) . | . . . . . . . . . . . . . . Largest Inventory Capacity 20 | 8 15 15 15 15 15 15 15 15 15 15 20 20 20 Average Capacity 15 | 7 12 15 15 15 15 15 15 15 15 15 18 20 20 Most Carried 20 | 5 15 15 15 15 15 15 15 15 15 15 20 20 20 Average Carried 15 | 3 11 14 14 14 14 14 14 14 14 14 17 19 18 Final Capacity 20 | 8 15 15 15 15 15 15 15 15 15 15 20 20 20 Final Carried 20 | 5 15 15 15 15 15 15 15 15 15 15 20 18 18 Class Distribution -------------------- 32% | Mutant 23% | Scavenger-Mutant 19% | Scavenger-Tank 12% | Scavenger-Skirmisher 9% | Tank Dominant Class ---------------- Mutant | -10/Materials Mutant | -10/Mines Mutant | -10/Exiles Mutant | -9/Mines Scavenger-Skirmisher | -8/Materials Scavenger-Mutant | -8/Garrison Scavenger-Mutant | -7/Factory Scavenger-Mutant | -7/Waste Scavenger-Tank | -7/Factory Scavenger-Tank | -7/Garrison Tank | -7/Factory Mutant | -7/Garrison Scavenger-Mutant | -6/Factory Resources | -11 -10 -10 -10 -9 -8 -8 -7 -7 -7 -7 -7 -7 -6 ----------- Run | Yrd Mat Min Exi Min Mat Gar Fac Was Fac Gar Fac Gar Fac Matter Collected 4906 | 297 427 60 268 70 772 528 62 50 30 601 599 689 453 Remotely . | . . . . . . . . . . . . . . Salvage Created 9750 | 210 427 84 . . 1771 415 161 548 90 1606 1908 1732 798 Parts 459 | 17 45 2 . . 74 25 8 8 6 74 89 72 39 Haulers Intercepted 6 | . 2 . . . 4 . . . . . . . . Recyclers Shooed 8 | . 4 . . . 1 . . . . . 3 . . Parts Field Recycled . | . . . . . . . . . . . . . . Retrieved Matter . | . . . . . . . . . . . . . . Parts Self-Destructed . | . . . . . . . . . . . . . . Prevented . | . . . . . . . . . . . . . . Parts Restored . | . . . . . . . . . . . . . . Kills | -11 -10 -10 -10 -9 -8 -8 -7 -7 -7 -7 -7 -7 -6 ------- Run | Yrd Mat Min Exi Min Mat Gar Fac Was Fac Gar Fac Gar Fac Combat Hostiles Destroyed 137 | . 13 7 . . 20 10 1 . 1 32 18 23 12 Melee 1 | . . . . . . . . . . 1 . . . Guns 103 | . 13 2 . . 19 9 1 . . 20 12 19 8 Cannons 21 | . . . . . . . . . 1 9 6 4 1 AOE 12 | . . 5 . . 1 1 . . . 2 . . 3 Classes Destroyed 18 | 3 4 1 . . 4 1 . . 1 1 2 . 1 Worker 10 | 1 1 1 . . 1 . . . . . 4 . 2 Builder 3 | . . . . . . . . . . . 2 . 1 Tunneler 6 | 5 . . . . . . . . . . 1 . . Hauler 6 | . 2 . . . 4 . . . . . . . . Recycler 17 | 1 . 1 . . 5 . 1 . . . 9 . . Operator 2 | . . . . . 1 . . . 1 . . . . Watcher 7 | . 1 . . . 4 . . . . . 2 . . Swarmer 29 | . 9 1 . . . 3 . . . 7 . 9 . Saboteur 1 | . . . . . . . . . . . . . 1 Grunt 49 | . 4 . . . 12 4 . . . 7 5 11 6 Brawler 3 | . . . . . 1 . . . . 1 . . 1 Duelist 7 | . . . . . 2 . . . . 2 2 . 1 Protector 1 | . . . . . . . . . . . 1 . . Sentry 24 | . . . . . 5 2 1 . . 11 5 . . Specialist 1 | . . . . . . . . . . 1 . . . Hunter 6 | . . . . . . 1 . . . 2 2 . 1 Programmer 11 | . . . . . . . . . 1 2 3 3 2 Assembled 6 | . . 6 . . . . . . . . . . . Wasp 2 | . . . . . . . . 1 1 . . . . Guerrilla 1 | . . . . . . . . . . . . . 1 Best Kill Streak 5 | 4 4 5 . . 4 3 2 . 1 5 5 3 5 Combat Bots Only 5 | . 3 4 . . 3 3 1 . 1 5 4 3 5 Max Kills in Single Turn 3 | 2 1 2 . . 2 1 1 1 1 2 2 1 3 Gunslinging . | . . . . . . . . . . . . . . Exploded 1 | . . 1 . . 1 1 . . . 1 . . 1 Melee 1 | . . . . . . . . . . 1 . . . Uniques/NPCs Destroyed . | . . . . . . . . . . . . . . Combat | -11 -10 -10 -10 -9 -8 -8 -7 -7 -7 -7 -7 -7 -6 -------- Run | Yrd Mat Min Exi Min Mat Gar Fac Was Fac Gar Fac Gar Fac Hostile Shots Fired 865 | . 78 14 . . 65 20 15 . . 285 182 81 125 Missed 249 | . 24 5 . . 12 5 8 . . 84 47 26 38 Hits 616 | . 54 9 . . 53 15 7 . . 201 135 55 87 Melee 16 | . . 2 . . 3 . . . . 5 . . 6 Projectile 600 | . 54 7 . . 50 15 7 . . 196 135 55 81 AOE 2 | . . . . . . . . . 1 1 . . . Critical Strikes 9 | . . . . . . 1 . . . . 2 3 3 Damage Taken 7890 | . 477 204 . . 967 230 51 . 118 1999 1156 1079 1609 Core 696 | . 54 . . . 24 20 . . . 184 137 210 67 Absorbed by Shields . | . . . . . . . . . . . . . . Reduced by Siege Mode 166 | . . . . . . . . . . 60 51 32 23 Regen/Repaired (Parts) 437 | . 39 . . . 111 . . . 31 256 . . . Core Remaining (%) 73 | 100 . . . 78 . 92 . . . . . 24 . Volleys Fired 443 | 14 82 16 . . 65 29 3 2 5 89 57 49 32 Largest 3 | 2 2 2 . . 3 3 2 1 3 3 3 3 3 Hottest 161 | 60 100 60 . . 151 147 90 65 151 151 161 131 118 Shots Fired 1079 | 28 140 19 . . 193 72 6 2 15 224 164 138 78 Gun 894 | 28 129 9 . . 193 72 3 . 10 152 111 118 69 Cannon 155 | . . . . . . . 3 2 5 69 53 20 3 Launcher 19 | . . 10 . . . . . . . 3 . . 6 Special 11 | . 11 . . . . . . . . . . . . Kinetic 698 | 15 127 5 . . 114 57 3 . 5 83 102 118 69 Thermal 315 | 13 13 4 . . 42 5 3 2 10 138 62 20 3 Explosive 15 | . . 10 . . . . . . . 3 . . 2 Electromagnetic 51 | . . . . . 37 10 . . . . . . 4 Robot Hit Streak 25 | 3 8 6 . . 19 20 5 . 6 23 25 25 14 Robot Miss Streak 8 | 3 8 2 . . 3 2 . . 2 4 3 5 4 Penetration Max 1 | . . . . . . . . . . . 1 . 1 Secondary Targets 5 | . . . . . 2 . . . . 1 . 1 1 Max Gunslinging Chain 1 | . . . . . 1 . . . . 1 . 1 1 Shots Hit Robots 728 | 15 58 7 4 . 145 40 5 26 8 150 114 113 43 Core Hits 394 | 9 29 17 . . 76 21 3 4 4 76 62 50 43 Critical Kills 4 | . 2 . . . . . . . . . 1 . 1 Critical Parts Destroyed 3 | . 2 . . . . . . . . . . . 1 Critical Strikes 19 | . 4 . . . 2 . . . . 5 3 2 3 Burn 9 | . . . . . 2 . . . . 5 2 . . Destroy 8 | . 4 . . . . . . . . . 1 . 3 Sever 2 | . . . . . . . . . . . . 2 . Melee Attacks 235 | . . . 4 . 10 49 1 27 . 32 19 90 3 Impact . | . . . . . . . . . . . . . . Slashing 231 | . . . . . 10 49 1 27 . 32 19 90 3 Piercing . | . . . . . . . . . . . . . . Sneak Attacks 14 | . . . 4 . 3 . . . . 4 3 . . Combat Hostiles . | . . . . . . . . . . . . . . Follow-up Attacks . | . . . . . . . . . . . . . . Damage Inflicted 19195 | 159 674 534 . 6 2857 782 114 1002 214 3802 3124 3948 1979 Guns 9688 | 159 640 78 . . 2238 678 31 . 98 1950 1787 1145 884 Cannons 2719 | . . . . . . . 83 28 116 1183 979 299 31 Explosions 2367 | . . 456 . . 378 104 . . . 365 . . 1064 Melee 4240 | . . . . . 224 . . 974 . 304 234 2504 . Ramming 181 | . 34 . . 6 17 . . . . . 124 . . Kinetic 7340 | 96 629 45 . . 1273 527 31 . 38 1045 1627 1145 884 Thermal 4984 | 63 11 33 . . 646 144 83 28 176 2088 1139 299 274 Explosive 1296 | . . 456 . . 166 . . . . 365 . . 309 Electromagnetic 1154 | . . . . . 531 111 . . . . . . 512 Impact . | . . . . . . . . . . . . . . Slashing 4240 | . . . . . 224 . . 974 . 304 234 2504 . Piercing . | . . . . . . . . . . . . . . Highest Corruption 10 | . . . . . . . . . . . 1 5 10 Average Corruption 1 | . . . . . . . . . . . 1 2 1 Corruption Purged . | . . . . . . . . . . . . . . Corruption Blocked . | . . . . . . . . . . . . . . Effects 51 | . . . . . . . . . . . 13 32 6 Message Errors 12 | . . . . . . . . . . . 4 6 2 Matter Fused 10 | . . . . . . . . . . . 1 8 1 Heat Flow Errors 8 | . . . . . . . . . . . 1 6 1 Energy Discharges 13 | . . . . . . . . . . . 5 8 . Data Loss (minor) 1 | . . . . . . . . . . . . 1 . Data Loss (major) 2 | . . . . . . . . . . . . . 2 Misfires 2 | . . . . . . . . . . . . 2 . Alerts 2 | . . . . . . . . . . . 1 1 . Weapon Failures 1 | . . . . . . . . . . . 1 . . Overload Shots . | . . . . . . . . . . . . . . Overflow Damage 320 | . . 9 . . 52 . . 9 18 70 81 52 29 Projectiles 41 | . . . . . . . . . 18 . 23 . . Explosions 52 | . . 9 . . 14 . . . . . . . 29 Melee 227 | . . . . . 38 . . 9 . 70 58 52 . Knockbacks 2 | . . . . . . . . . . . 2 . . Impact 2 | . . . . . . . . . . . 2 . . Kinetic . | . . . . . . . . . . . . . . Secondary . | . . . . . . . . . . . . . . Self-Inflicted Damage 366 | . . 84 . . 189 . . . . 45 . . 48 Shots 13 | . . 4 . . 3 . . . . 2 . . 4 Rammed 17 | . 7 . . 1 2 . . . . . 7 . . Targets Rammed 19 | . 7 . . 1 3 . . . . . 8 . . Kicked . | . . . . . . . . . . . . . . Crushed 2 | . . . . . 1 . . . . . 1 . . Highest Temperature 620 | 40 60 . . . 214 180 8 . 52 620 226 223 101 Average Temperature 61 | 20 18 . . . 51 59 6 . 27 96 70 103 40 Received Heat Transfer 1857 | . 57 . . . 321 99 12 . 12 453 276 117 510 Effects 9 | . . . . . . . . . . 7 2 . . Shutdowns 1 | . . . . . . . . . . 1 . . . Energy Bleed 1 | . . . . . . . . . . 1 . . . Interference 5 | . . . . . . . . . . 3 2 . . Damage (minor) 1 | . . . . . . . . . . 1 . . . Damage (core) 1 | . . . . . . . . . . 1 . . . Siege Activations 23 | . . . . . . . . . . 10 4 7 2 Total Turns 318 | . . . . . . . . . . 94 61 134 29 Longest Duration 48 | . . . . . . . . . . 16 43 48 18 Martial Activations . | . . . . . . . . . . . . . . Shielding Activations . | . . . . . . . . . . . . . . Robots Disrupted 1 | . . . . . . . . . . . . . 1 Combat Hostiles 1 | . . . . . . . . . . . . . 1 Robots Corrupted 1 | . . . . . . . . . . . 1 . . Combat Hostiles . | . . . . . . . . . . . . . . Parts Fried 5 | . . . . . 3 . . . . . 2 . . Impact Corruptions 1 | . . . . . . . . . . . 1 . . Robots Melted . | . . . . . . . . . . . . . . Combat Hostiles . | . . . . . . . . . . . . . . Parts Melted 9 | . . . . . 1 . . . . 5 3 . . Heat Transferred 7768 | 150 25 75 . . 1216 174 111 37 259 3222 1795 367 337 Parts Sabotaged 3 | . . . . . . . . . . . . . 3 Parts Stolen . | . . . . . . . . . . . . . . Parts Stripped . | . . . . . . . . . . . . . . Power Chain Reactions 8 | . . . . . 3 2 . . . . . . 3 Alert | -11 -10 -10 -10 -9 -8 -8 -7 -7 -7 -7 -7 -7 -6 ------- Run | Yrd Mat Min Exi Min Mat Gar Fac Was Fac Gar Fac Gar Fac Maximum Alert Level 4 | . . . . . 1 3 2 . . 4 3 4 3 Low Security (%) 40 | 100 100 100 . 100 93 5 7 100 100 16 . . . Level 1 8 | . . . . . 6 10 81 . . 20 . 7 . Level 2 20 | . . . . . . 38 11 . . 11 88 13 1 Level 3 22 | . . . . . . 45 . . . 32 11 42 98 Level 4 7 | . . . . . . . . . . 19 . 36 . Level 5 . | . . . . . . . . . . . . . . High Security . | . . . . . . . . . . . . . . Max Security . | . . . . . . . . . . . . . . Peak Influence 1560 | 15 178 118 . 23 283 1087 570 66 120 1554 815 1560 883 Initial 819 | . . 69 . . . 180 570 65 . 13 815 377 819 Average 458 | 3 46 77 . . 96 635 314 6 44 690 613 955 788 Influence Increases 6882 | 35 423 116 . 23 853 927 33 1 407 1782 536 1263 483 Destroy 0b10 Robot/C 2996 | . 260 40 . 20 460 328 16 . 144 704 272 528 224 Destroy 0b10 Robot/NC 273 | 35 20 10 . . 80 . 4 . 4 . 76 28 16 Destroy Leader 456 | . 56 . . . 138 16 8 . 40 24 84 40 50 Allied During Kill 369 | . . 4 . 3 23 32 . . 176 68 . 57 6 Successful Hack 127 | . 14 . . . 25 18 4 . 42 12 12 . . Select Force Hacks 60 | . 60 . . . . . . . . . . . . Disable Machine 207 | . . . . . 15 12 . . . 36 12 24 108 Anti-Garrison Action 1680 | . . . . . . 440 . . . 760 . 480 . Destroy Structure 480 | . 13 47 . . 37 81 1 1 1 142 20 82 55 Partial Spotted 15 | . . . . . 15 . . . . . . . . Lose Combat Pursuer 219 | . . 15 . . 60 . . . . 36 60 24 24 Influence Decreases 6038 | 35 245 249 45 23 576 117 933 188 388 247 1551 242 1199 Entered New Map 2538 | . . 109 45 . . 97 517 122 . 6 739 162 741 Time Decay 2591 | 35 239 80 . 23 536 . 246 66 316 . 652 . 398 Lost Part 140 | . . 10 . . 20 . . . . . 10 40 60 Lost Ally 463 | . . 50 . . 20 20 20 . 72 241 . 40 . Purge Threat 306 | . 6 . . . . . 150 . . . 150 . . Squads Dispatched 29 | . 2 . . . 9 . 1 . 3 . 6 . 8 Investigation 5 | . 2 . . . 2 . . . . . . . 1 Extermination 9 | . . . . . . . 1 . 2 . 4 . 2 Reinforcement 8 | . . . . . 5 . . . 1 . . . 2 Assault 5 | . . . . . . . . . . . 2 . 3 Garrison 2 | . . . . . 2 . . . . . . . . Intercept . | . . . . . . . . . . . . . . Searches Triggered . | . . . . . . . . . . . . . . Construction Impeded 2 | . . . . . 2 . . . . . . . . Haulers Reinforced 2 | . . . . . . . . . . . . . 2 Active Scanning Responses . | . . . . . . . . . . . . . . Cargo Convoy Interrupts 2 | . . . . . . . . . 1 . . . 1 Stealth | -11 -10 -10 -10 -9 -8 -8 -7 -7 -7 -7 -7 -7 -6 --------- Run | Yrd Mat Min Exi Min Mat Gar Fac Was Fac Gar Fac Gar Fac Distress Signals 10 | . 1 . . . 2 . . . 1 . 3 . 3 Communications Jammed . | . . . . . . . . . . . . . . Distress Signals . | . . . . . . . . . . . . . . Times Spotted 231 | . 25 10 . . 40 17 1 . 9 45 32 24 28 Peak Tracking Total 10 | . 4 3 . . 5 3 1 . 3 7 8 5 10 Tactical Retreats 13 | . . 2 . . 4 . . . . 2 2 2 1 Traps | -11 -10 -10 -10 -9 -8 -8 -7 -7 -7 -7 -7 -7 -6 ------- Run | Yrd Mat Min Exi Min Mat Gar Fac Was Fac Gar Fac Gar Fac Traps Triggered 11 | . . . . . 2 . 1 . 1 4 2 . 1 Indirectly . | . . . . . . . . . . . . . . Trap Hack Attempts . | . . . . . . . . . . . . . . Triggered . | . . . . . . . . . . . . . . Disarmed . | . . . . . . . . . . . . . . Reprogrammed . | . . . . . . . . . . . . . . Reused . | . . . . . . . . . . . . . . Traps Extracted . | . . . . . . . . . . . . . . Installed . | . . . . . . . . . . . . . . Triggered . | . . . . . . . . . . . . . . Machines | -11 -10 -10 -10 -9 -8 -8 -7 -7 -7 -7 -7 -7 -6 ---------- Run | Yrd Mat Min Exi Min Mat Gar Fac Was Fac Gar Fac Gar Fac Machines Disabled 31 | . . . . . 1 6 . . . 7 1 7 9 Max in Single Turn 4 | . . . . . 1 1 . . . 1 1 1 4 Garrison Relay 11 | . . . . . . 5 . . . 2 . 4 . Phase Generator 1 | . . . . . . . . . . 1 . . . Machines Repaired . | . . . . . . . . . . . . . . Machines Dismantled 5 | . . . . . . 5 . . . . . . . Machines Sabotaged . | . . . . . . . . . . . . . . Overloaded Fab Kills . | . . . . . . . . . . . . . . Hacking | -11 -10 -10 -10 -9 -8 -8 -7 -7 -7 -7 -7 -7 -6 --------- Run | Yrd Mat Min Exi Min Mat Gar Fac Was Fac Gar Fac Gar Fac Machines Accessed 49 | . 11 . 3 . 11 4 2 . 5 1 7 2 3 Terminals 28 | . 8 . . . 7 4 2 . . 1 2 2 2 Fabricators . | . . . . . . . . . . . . . . Repair Stations 5 | . 1 . . . 1 . . . . . 2 . 1 Recycling Units 7 | . 2 . . . 1 . . . 2 . 2 . . Scanalyzers 3 | . . . . . 1 . . . 2 . . . . Garrison Access 3 | . . . . . 1 . . . 1 . 1 . . Total Hacks 130 | . 33 . 14 . 38 7 6 . 10 1 12 3 6 Successful 78 | . 23 . 14 . 22 3 4 . 4 1 5 1 1 Failed 51 | . 10 . . . 15 4 2 . 6 . 7 2 5 Catastrophic 15 | . 1 . . . 6 2 . . 2 . 2 . 2 Database Lockouts 1 | . . . . . 1 . . . . . . . . Manual 55 | . 23 . 1 . 19 . 5 . . . 5 . 2 Terminals 75 | . 26 . . . 23 7 6 . . 1 6 3 3 Fabricators . | . . . . . . . . . . . . . . Repair Stations 10 | . 2 . . . 2 . . . . . 3 . 3 Recycling Units 11 | . 5 . . . 2 . . . 2 . 2 . . Scanalyzers 17 | . . . . . 10 . . . 7 . . . . Garrison Access 3 | . . . . . 1 . . . 1 . 1 . . Terminal Hacks 33 | . 9 . 14 . 2 3 1 . . 1 2 1 . Record 13 | . . . 13 . . . . . . . . . . Robot Analysis 2 | . 2 . . . . . . . . . . . . Prototype ID Bank 1 | . 1 . . . . . . . . . . . . Open Door 2 | . . . . . . 1 . . . . . 1 . Emergency Access Points 2 | . . . . . . 1 . . . 1 . . . Terminal Index 1 | . 1 . . . . . . . . . . . . Unreport Threat 3 | . 1 . . . . . 1 . . . 1 . . Locate Traps 2 | . 1 . . . . . . . . . 1 . . Dispatch Records 1 | . 1 . . . . . . . . . . . . Transport Status 1 | . 1 . . . . . . . . . . . . Recall Reinforcements 1 | . . . . . 1 . . . . . . . . Hauler Manifests 2 | . 1 . . . 1 . . . . . . . . Garrison Registry 1 | . . . . . . 1 . . . . . . . Proto ID Catalog 1 | . . . 1 . . . . . . . . . . Fabricator Hacks . | . . . . . . . . . . . . . . Repair Station Hacks 6 | . 2 . . . 2 . . . . . 1 . 1 Scan Component 4 | . 1 . . . 1 . . . . . 1 . 1 Repair 2 | . 1 . . . 1 . . . . . . . . Recycling Unit Hacks 2 | . 2 . . . . . . . . . . . . Retrieve Components 2 | . 2 . . . . . . . . . . . . Scanalyzer 12 | . . . . . 9 . . . 3 . . . . Insert Component 4 | . . . . . 2 . . . 2 . . . . Analyze 1 | . . . . . . . . . 1 . . . . Retrieve Study 7 | . . . . . 7 . . . . . . . . Garrison Access Hacks 3 | . . . . . 1 . . . 1 . 1 . . Unlock Access 3 | . . . . . 1 . . . 1 . 1 . . Unauthorized Hacks 22 | . 10 . . . 8 . 3 . . . 1 . . Terminals 20 | . 8 . . . 8 . 3 . . . 1 . . Assimilate 1 | . 1 . . . . . . . . . . . . Botnet 6 | . 2 . . . 2 . 1 . . . 1 . . Skim 13 | . 5 . . . 6 . 2 . . . . . . Fabricators . | . . . . . . . . . . . . . . Repair Stations . | . . . . . . . . . . . . . . Recycling Units 2 | . 2 . . . . . . . . . . . . Tunnel 2 | . 2 . . . . . . . . . . . . Scanalyzers . | . . . . . . . . . . . . . . Garrison Access . | . . . . . . . . . . . . . . Data Cores Recovered . | . . . . . . . . . . . . . . Used . | . . . . . . . . . . . . . . Hacking Detections 39 | . 9 . . . 10 2 2 . 4 1 7 1 3 Full Trace Events 2 | . 1 . . . 1 . . . . . . . . Feedback Events . | . . . . . . . . . . . . . . Feedback Blocked . | . . . . . . . . . . . . . . Robot Schematics Acquired . | . . . . . . . . . . . . . . Robots Built . | . . . . . . . . . . . . . . Authchips . | . . . . . . . . . . . . . . Time . | . . . . . . . . . . . . . . Total Robot Build Rating . | . . . . . . . . . . . . . . Part Schematics Acquired 1 | . . . . . . . . . 1 . . . . Parts Built . | . . . . . . . . . . . . . . Authchips . | . . . . . . . . . . . . . . Time . | . . . . . . . . . . . . . . Total Part Build Rating . | . . . . . . . . . . . . . . Part Studies Acquired 7 | . . . . . 7 . . . . . . . . Parts Repaired 2 | . 1 . . . 1 . . . . . . . . Time 52 | . 26 . . . 26 . . . . . . . . Parts Recycled . | . . . . . . . . . . . . . . Recycled Matter . | . . . . . . . . . . . . . . Retrieved Matter . | . . . . . . . . . . . . . . Retrieved Components 18 | . 18 . . . . . . . . . . . . Parts Scanalyzed 1 | . . . . . . . . . 1 . . . . Part Schematics Acquired 1 | . . . . . . . . . 1 . . . . Parts Damaged . | . . . . . . . . . . . . . . Bothacking | -11 -10 -10 -10 -9 -8 -8 -7 -7 -7 -7 -7 -7 -6 ------------ Run | Yrd Mat Min Exi Min Mat Gar Fac Was Fac Gar Fac Gar Fac Used RIF Installer . | . . . . . . . . . . . . . . Robots Hacked 4 | . . . 4 . . . . . . . . . . Non-combat 3 | . . . 3 . . . . . . . . . . Combat 1 | . . . 1 . . . . . . . . . . Robot Hacks Applied 4 | . . . 4 . . . . . . . . . . parse_system 4 | . . . 4 . . . . . . . . . . Relay Couplers Released 42 | . . . . . . 18 . . . 8 . 16 . Machine Destruction 42 | . . . . . . 18 . . . 8 . 16 . Fabnet Peak Effective % . | . . . . . . . . . . . . . . Robots Rewired 20 | . . . . . . . . . . 17 . 3 . Allies Hacked . | . . . . . . . . . . . . . . Hacks Repelled . | . . . . . . . . . . . . . . Allies | -11 -10 -10 -10 -9 -8 -8 -7 -7 -7 -7 -7 -7 -6 -------- Run | Yrd Mat Min Exi Min Mat Gar Fac Was Fac Gar Fac Gar Fac Total Allies 50 | . 1 2 . 3 . 2 . 20 . 17 . 5 . Largest Group 20 | . 1 3 . 3 3 2 1 20 19 8 . 3 3 Highest-Rated Group 503 | . 10 57 . 40 40 70 31 503 489 168 . 142 95 Highest-Rated Ally 80 | . 10 31 . 16 16 39 31 31 31 31 . 80 39 Initial Warlord ECA Mod 20 | . . . . . . . 8 8 8 8 15 15 20 Total Orders 13 | . 9 2 . . 2 . . . . . . . . STAY 7 | . 5 1 . . 1 . . . . . . . . FOLLOW 6 | . 4 1 . . 1 . . . . . . . . Ally Attacks 277 | . . 7 . 3 38 30 4 . 60 84 . 23 28 Total Damage 4466 | . . 85 . 13 406 391 41 . 796 1466 . 1050 218 Kills 50 | . . 1 . 1 4 10 . . 8 12 . 10 4 Allies Corrupted . | . . . . . . . . . . . . . . Allies Melted . | . . . . . . . . . . . . . . Intel | -11 -10 -10 -10 -9 -8 -8 -7 -7 -7 -7 -7 -7 -6 ------- Run | Yrd Mat Min Exi Min Mat Gar Fac Was Fac Gar Fac Gar Fac Active Infowar (turns) 4004 | 82 1699 163 1278 628 149 . . . . . . 5 . Terrain 149 | . . . . . 149 . . . . . . . . Structural 5 | . . . . . . . . . . . . 5 . Seismic 3846 | 82 1695 163 1278 628 . . . . . . . . . T.N.C. 4 | . 4 . . . . . . . . . . . . Robot Analysis Total 2 | . 2 . . . . . . . . . . . . Derelict Logs Recovered 1 | . . . . 1 . . . . . . . . . Drone Launches . | . . . . . . . . . . . . . . Drone Recoveries . | . . . . . . . . . . . . . . Exploration | -11 -10 -10 -10 -9 -8 -8 -7 -7 -7 -7 -7 -7 -6 ------------- Run | Yrd Mat Min Exi Min Mat Gar Fac Was Fac Gar Fac Gar Fac Turns Passed 19528 | 158 1919 163 1283 950 2053 2197 539 766 907 2959 2400 2279 955 Spaces Moved 10048 | 87 1066 75 794 583 931 1165 268 412 522 1376 1285 986 498 Core 3 | 3 . . . . . . . . . . . . . Treads 9499 | . 604 75 794 583 931 1165 268 412 522 1376 1285 986 498 Legs 546 | 84 462 . . . . . . . . . . . . Wheels . | . . . . . . . . . . . . . . Hover . | . . . . . . . . . . . . . . Flight . | . . . . . . . . . . . . . . Fastest Speed 50 | 50 120 160 160 160 160 162 162 160 160 160 155 155 160 Average Speed 157 | 117 142 160 160 160 160 162 162 161 160 160 157 158 160 Slowest Speed 163 | 120 160 160 160 160 162 162 162 163 160 160 160 160 160 Overloaded Moves . | . . . . . . . . . . . . . . Propulsion Burnouts . | . . . . . . . . . . . . . . Robots Hopped 1 | . . . . . . . . . . 1 . . . Potential Cave-ins . | . . . . . . . . . . . . . . Cave-ins Triggered 1 | . . . . . . . . . . . . 1 . Exploration Rate (%) 55 | 5 99 10 91 76 68 85 8 97 14 87 30 86 14 Regions Visited 13 Branch Regions 3 Pre-discovered Areas 5 | . 2 . 1 1 1 . . . . . . . . Known Exits Taken 4 | . 1 . . . 1 . . . 1 . 1 . . Unknown Exits Taken 4 | 1 . 1 1 1 . . . . . . . . . Scrap Searched 2 | . . . . 2 . . . . . . . . . Spaces Dug 85 | . 8 . . . 7 17 1 1 . 5 15 29 2 Terrain Destroyed 361 | . 11 81 . . 38 22 1 1 . 115 17 31 44 Melee 77 | . . . . . 7 17 1 1 . 5 15 29 2 Projectile 13 | . 11 . . . . . . . . . . 2 . AOE 269 | . . 81 . . 31 5 . . . 110 . . 42 Terrain Rammed . | . . . . . . . . . . . . . . Walls Destroyed . | . . . . . . . . . . . . . . Machines Disabled . | . . . . . . . . . . . . . . Actions | -11 -10 -10 -10 -9 -8 -8 -7 -7 -7 -7 -7 -7 -6 --------- Run | Yrd Mat Min Exi Min Mat Gar Fac Was Fac Gar Fac Gar Fac Total 12633 | 113 1312 98 803 602 1338 1346 372 491 587 1959 1518 1507 587 Wait 1263 | . 115 3 . 7 236 54 87 31 47 224 110 324 25 Move 10029 | 86 1065 74 793 582 931 1161 268 411 521 1370 1284 985 498 Hop 1 | . . . . . . . . . . 1 . . . Pick Up 83 | 5 15 1 1 3 13 2 3 2 6 8 12 5 7 Fast Attach 37 | 7 2 . . . 16 . 1 2 . 1 1 3 4 Attach 26 | . 2 1 . 1 3 1 2 . . 1 2 7 6 Detach 19 | . 1 . . . 4 1 1 3 . . 1 6 2 Swap 138 | 1 14 3 4 3 25 29 2 3 2 20 14 12 6 Drop 104 | . 9 . 1 5 32 4 4 10 6 13 10 6 4 Fire 443 | 14 82 16 . . 65 29 3 2 5 89 57 49 32 Melee 235 | . . . 4 . 10 49 1 27 . 32 19 90 3 Ram . | . . . . . . . . . . . . . . Kick . | . . . . . . . . . . . . . . Crush 19 | . 7 . . 1 3 . . . . . 8 . . Escape Stasis . | . . . . . . . . . . . . . . Rewire 220 | . . . . . . . . . . 200 . 20 . Trap . | . . . . . . . . . . . . . . Miscellaneous 16 | . . . . . . 16 . . . . . . . Route ------- -11/Scrapyard -10/Materials (discovered 6 exits: *Mat x3 / *Min x2 / Sub) -10/Mines -10/Exiles (discovered 2 exits: [*Min x2]) -9/Mines (discovered 2 exits: *Mat x2) -8/Materials (discovered 4 exits: *Fac x3 / Gar) -8/Garrison (discovered 3 exits: *Fac x3) -7/Factory -7/Waste -7/Factory (discovered 2 exits: *Fac / Gar) -7/Garrison (discovered 3 exits: *Fac x3) -7/Factory (discovered 3 exits: *Fac x2 / Gar) -7/Garrison (discovered 3 exits: *Fac x3) -6/Factory (discovered 2 exits: [*Fac] / Ext) History --------- Turn | Location | Event 8 | -11/Scrapyard | Discovered new exit (range 16) 159 | -11/Scrapyard | Entered Materials 315 | -10/Materials | Build established: Mutant 477 | -10/Materials | Discovered new exit (range 5) 636 | -10/Materials | Discovered new exit (range 6) 651 | -10/Materials | Discovered new exit (range 14) 919 | -10/Materials | Discovered new exit (range 16) 1038 | -10/Materials | Repaired Lgt. Treads 1039 | -10/Materials | Identified exit to Subcaves 1107 | -10/Materials | Identified exit to Mines 1107 | -10/Materials | Identified exit to Materials 1163 | -10/Materials | Learned Storage security intel 1207 | -10/Materials | Learned Storage security intel 1260 | -10/Materials | Learned Storage security intel 1291 | -10/Materials | Learned location of 2 exits from Subcaves 2078 | -10/Materials | Entered Mines 2078 | -10/Mines | Accompanied by 1 ally 2079 | -10/Mines | Assembled infested the area 2203 | -10/Mines | Deemed a non-threat by the Exiles lab entrance 2205 | -10/Mines | Discovered new exit (range 5) 2241 | -10/Mines | Entered Exiles 2267 | -10/Exiles | Discovered new exit (range 15) 2310 | -10/Exiles | Met 8R-AWN 2336 | -10/Exiles | Met EX-HEX 2379 | -10/Exiles | Met EX-BIN 2502 | -10/Exiles | Met EX-DEC 2515 | -10/Exiles | Learned location of Zion (-7) 2662 | -10/Exiles | Discovered new exit (range 10) 2767 | -10/Exiles | Visited The Gauntlet 3029 | -10/Exiles | Aligned with FarCom system 3030 | -10/Exiles | Given EX-Vault access code 3096 | -10/Exiles | Opened EX-Vault 3107 | -10/Exiles | Found 0b10 Alert Chip 3137 | -10/Exiles | Warned to stay clear of 0b10 Research branches 3524 | -10/Exiles | Left Exiles lab with 0b10 Alert Chip 3524 | -10/Exiles | Entered Mines 3534 | -9/Mines | Met a Derelict bent on vengeance 3578 | -9/Mines | YI-UF0 nonchalantly dropped a Grenade Launcher on the ground 3682 | -9/Mines | Discovered new exit (range 11) 3844 | -9/Mines | Assisted by bots powering up and referring to "LRC-V3" 4046 | -9/Mines | A weapon hastily lodged in a ceiling crevice suddenly fell to the ground 4331 | -9/Mines | Discovered new exit (range 12) 4474 | -9/Mines | Entered Materials 4474 | -8/Materials | Accompanied by 3 allies 4474 | -8/Materials | Evolved 4 slots: Propulsion x2, Utility x1, Weapon x1 5011 | -8/Materials | Build established: Scavenger-Skirmisher 5049 | -8/Materials | Central database locked down 5912 | -8/Materials | Discovered new exit (range 16) 5966 | -8/Materials | Learned location of 1 exit from Extension 5999 | -8/Materials | Repaired Lgt. Treads+ 6037 | -8/Materials | Learned 2 Storage zone layouts 6193 | -8/Materials | Learned Storage stockpile data 6222 | -8/Materials | Identified exit to Factory 6262 | -8/Materials | Learned location of 1 exit from Lower Caves 6310 | -8/Materials | Learned Factory recycling unit intel 6383 | -8/Materials | Garrison activated, responded to threat 6527 | -8/Materials | Identified exit to Garrison 6527 | -8/Materials | Entered Garrison 6619 | -8/Garrison | Triggered checkpoint 6730 | -8/Garrison | Garrison Relay disabled 6845 | -8/Garrison | Rescued a captive Derelict 6854 | -8/Garrison | Rescued a captive Derelict 7206 | -8/Garrison | Build established: Scavenger-Mutant 7255 | -8/Garrison | Triggered checkpoint 7369 | -8/Garrison | Discovered exit to Factory (range 14) 7539 | -8/Garrison | Discovered exit to Factory (range 93) 7539 | -8/Garrison | Discovered exit to Factory (range 21) 7539 | -8/Garrison | Discovered exit to Factory (range 65) 7550 | -8/Garrison | Build established: Scavenger-Skirmisher 7579 | -8/Garrison | Triggered checkpoint 7651 | -8/Garrison | Garrison Relay disabled 7668 | -8/Garrison | Garrison Relay disabled 7868 | -8/Garrison | Garrison Relay disabled 7928 | -8/Garrison | Triggered checkpoint 7979 | -8/Garrison | Triggered checkpoint 8082 | -8/Garrison | Triggered checkpoint 8096 | -8/Garrison | Garrison Relay disabled 8283 | -8/Garrison | Triggered checkpoint 8302 | -8/Garrison | Build established: Scavenger-Mutant 8500 | -8/Garrison | Attempted to access garrison exit controls, blocked by remote lockdown 8724 | -8/Garrison | Entered Factory 8724 | -7/Factory | Accompanied by 1 ally 8724 | -7/Factory | Evolved 2 slots: Utility x2 8725 | -7/Factory | Loaded intel: 6 recycling unit locations 9263 | -7/Factory | Sucked down chute 9263 | -7/Factory | Entered Waste 9264 | -7/Waste | Joined by Warlord forces that had cleared the area 9762 | -7/Waste | Discovered new exit (range 12) 10029 | -7/Waste | Entered Factory 10029 | -7/Factory | Accompanied by 19 allies 10531 | -7/Factory | Build established: Scavenger-Tank 10609 | -7/Factory | Discovered new exit (range 16) 10736 | -7/Factory | Lost 4 allies 10928 | -7/Factory | Identified exit to Garrison 10933 | -7/Factory | Cargo convoy interrupted 10936 | -7/Factory | Entered Garrison 10936 | -7/Garrison | Accompanied by 6 allies 10987 | -7/Garrison | Lost 6 allies 11032 | -7/Garrison | Triggered checkpoint 11349 | -7/Garrison | Garrison Relay disabled 11372 | -7/Garrison | Triggered checkpoint 11382 | -7/Garrison | Lost 3 allies 11393 | -7/Garrison | Triggered checkpoint 11448 | -7/Garrison | Triggered checkpoint 11458 | -7/Garrison | Lost 3 allies 11723 | -7/Garrison | Triggered checkpoint 11747 | -7/Garrison | Triggered checkpoint 12020 | -7/Garrison | Triggered checkpoint 12096 | -7/Garrison | Triggered checkpoint 12145 | -7/Garrison | Garrison Relay disabled 12189 | -7/Garrison | Triggered checkpoint 12262 | -7/Garrison | Triggered checkpoint 12524 | -7/Garrison | Discovered new exit (range 15) 12660 | -7/Garrison | Build established: Scavenger-Mutant 12838 | -7/Garrison | Triggered checkpoint 12876 | -7/Garrison | Triggered checkpoint 12877 | -7/Garrison | Lost 6 allies 13221 | -7/Garrison | Discovered new exit (range 15) 13244 | -7/Garrison | Attempted to access garrison exit controls, blocked by remote lockdown 13517 | -7/Garrison | Phase Generator disabled 13546 | -7/Garrison | Attempted to access garrison exit controls, blocked by remote lockdown 13762 | -7/Garrison | Triggered checkpoint 13846 | -7/Garrison | Build established: Scavenger-Tank 13866 | -7/Garrison | Discovered new exit (range 8) 13895 | -7/Garrison | Entered Factory 14298 | -7/Factory | Discovered new exit (range 16) 14895 | -7/Factory | Build established: Mutant 14913 | -7/Factory | Identified exit to Factory 15095 | -7/Factory | First assault squad dispatched 15375 | -7/Factory | Build established: Tank 15766 | -7/Factory | Discovered exit to Factory (range 15) 16239 | -7/Factory | Identified exit to Garrison 16295 | -7/Factory | Entered Garrison 16419 | -7/Garrison | Triggered checkpoint 16429 | -7/Garrison | Found embedded Infiltrators 16446 | -7/Garrison | Build established: Mutant 16456 | -7/Garrison | Garrison Relay disabled 16469 | -7/Garrison | Triggered checkpoint 16656 | -7/Garrison | Triggered checkpoint 16673 | -7/Garrison | Core integrity fell below 50% 16767 | -7/Garrison | Build established: Tank 16940 | -7/Garrison | Discovered exit to Factory (range 10) 17001 | -7/Garrison | Triggered checkpoint 17085 | -7/Garrison | Garrison Relay disabled 17402 | -7/Garrison | Triggered checkpoint 17602 | -7/Garrison | Discovered exit to Factory (range 12) 17609 | -7/Garrison | Build established: Scavenger-Tank 17659 | -7/Garrison | Triggered checkpoint 17742 | -7/Garrison | Garrison Relay disabled 18095 | -7/Garrison | Build established: Mutant 18354 | -7/Garrison | Triggered checkpoint 18448 | -7/Garrison | Discovered exit to Factory (range 14) 18526 | -7/Garrison | Garrison Relay disabled 18538 | -7/Garrison | Crushed by falling debris 18574 | -7/Garrison | Entered Factory 18574 | -6/Factory | Accompanied by 3 allies 18574 | -6/Factory | Evolved 2 slots: Propulsion x2 18575 | -6/Factory | Identified exit to Extension 18691 | -6/Factory | Discovered new exit (range 15) 18861 | -6/Factory | Build established: Scavenger-Mutant 18924 | -6/Factory | First assault squad dispatched 19312 | -6/Factory | Cargo convoy interrupted 19314 | -6/Factory | Build established: Scavenger-Tank 19527 | -6/Factory | System corruption reached 10% 19529 | -6/Factory | Self-destructed Last Messages --------------- 19482_ P-60 Hacker destroyed. 19486_ Imp. Deuterium Engine blown off. 19486_ Imp. Medium Armor Plating blown off. 19486_ Gauss Rifle blown off. 19486_ E-15 Imp destroyed. 19486_ Acquired Imp. Deuterium Engine. 19489_ Acquired Imp. Medium Armor Plating. 19493_ Acquired Cesium-ion Thruster. 19493_ Assembly Bed disabled. 19494_ Acquired 19 matter. 19502_ PRNUFD1PQM:=JZC%HGOSM2Y 19512_ Assembly Bed disabled. 19517_ G-50 Soldier destroyed. 19518_ Imp. Deuterium Engine destroyed. 19518_ System corrupted by crushing effect (+4). 19526_ Core Analyzer destroyed. 19526_ System corrupted by crushing effect (+4). 19528_ Missile Launcher destroyed. 19529_ Imp. Medium Armor Plating destroyed. [Achievement: Tester] Map ----- +----------------------------------------------------+ | ??# / % #???????????# #??# ! | | ??# + #???????????# """ #??# | | ??# / #???????????# "R #??#! | | ??# # #???????????# """ #??# | | ?## # #???????????# "" #??# | | ?# % ###########??? ???? | | ?##/ [%! !! # # #??###+###????? | | ??# % !! # # "" "" #??# ########+ | | ??# %= ! %!!! # # "" "" #### | | ??# # # """ """ + | | ??# # # """ """ #### ! | | ??# # # """ """ #??# ####### # | | ??########+##### + #??### ###?????# | | ????????## #???# # ! #????# #???????# | | ?????????# #???# ################ #???????# " | | ?????###?# #???# #?# *# #???????# | | ###### ### #???# #?# """" # #???????# " | | # # #???# #?# ""R"" # #####???# | | #*! # #??## ### ""[""=# #???# " | | #!! # #### ## =[%[# #???# | | #! # ! gg"" ## " " " * %" #???# | | # != [ ! "T ## "" #???# " | | # # ## ##### " | | # !### ## ## g ### " | | # #?# #### #### g # # # | | # ! #?# #??? #??#@gb = # =% | | ############+##?? #??# b =%g # %= | | | ???????# #?? ??#### ##### =* %%= | | ???????# """ #??? ??????? #?""" !%[=![ | | ???????# """ #??? #???????#####"G // * ]%[% | | ???????# """ #???##???????????#"""//[%= !=/! | | ???##### ""] #????????????????####// = =[ | | ??? # "" #???????????????? ! | | ? """" # #???????????????? [= | | # """" # #??????????????? !%* % | | # """" ###+####?????????????? [![ | | # """" # #???????????????? ] | | # # #????????? ?#####+##########""T""# | | # """" + #????????? # ???????#"""""# | | # """" # #????????# # "Y"????####### | | ? """" # #????##??# # " " #????????? | | ? """" ### ###????+ #?# # #????????? | | ? #?# #??????# #?# # #????????? | | ? ]#?# ######## ### # #????????? | | ? #?# ### # #????????? | | ########?####+### # #?# # #????????? | | ?????????# ] ### # #????????? | | ?????????#""" # %# #????????? | | ?????????#"R # # #????????? | | ?????????#""" # #????????? | +----------------------------------------------------+ Best States ------------- Heat Dissipation 61 Energy Generation 16 Energy Capacity 290 Matter Stores 300 Matter Capacity 300 Sight Range 16 Terrain Scan Range 16 Terrain Scan Density 10 Armor Coverage 450 Evasion (%) 55 Targeting Accuracy 8 Core Analysis 6 Recoil Reduction 6 Offensive Hacking 10 Item Schematics ----------------- Exp. Cesium-ion Thruster | -7/Factory | Scanalyzed Robot Schematics ------------------ None Fabricated ------------ Nothing Repaired ---------- Lgt. Treads | 72% | -10/Materials Lgt. Treads | 20% | -8/Materials Studied --------- Lgt. Treads | -8/Materials | Hacked Hvy. Assault Rifle | -8/Materials | Hacked Grenade Launcher | -8/Materials | Hacked EM Shotgun | -8/Materials | Hacked Imp. Ion Engine | -8/Materials | Hacked Lgt. Nuclear Core | -8/Materials | Hacked Hvy. EM Pulse Gun | -8/Materials | Hacked Alien Tech Used ----------------- None Achievements -------------- Analysis Probe Immobile And Lovin' It Sixth Sense Tester Challenges ------------ None Game ------ Seed SixRecyclingTerrabomb Manual? 0 Play Time 03:29:05 Cumulative 211.6 hours Start 2025.11.23 @ 23:02:43 End 2025.11.24 @ 19:24:50 Sessions 6 Manual Loads 0 Difficulty Rogue Special Mode None Game No. 70 Rogue 70 Adventurer 0 Explorer 0 Win Type - Total 1 Types 1/0/0/0/0/0/0/0/0/0 Lore% 51 Gallery% 50 Achievement% 38 Wizard Run 0 Options --------- Layout 0 ASCII 1 Keyboard 1 Movement Arrows Keybinds 0 Fullscreen 1 Font 28/Smallcaps Map View 72x54 Zoom Use 0% Tactical HUD 1 Map Filters NONE Filters NONE Steam 1 RUN: 47420a98-2391-4dcf-8125-ddf141fb63f8